Cogmind - Beta 14 @@@ ROGUE MODE // 2024.12.09 @ 20:38:23 Player: porter Result: Destroyed by G-47 Trooper with Particle Gun Performance ------------- Evolutions (2) 1000 Regions Visited (4) 800 Robots Destroyed (43) 215 Value Destroyed (1359) 1359 Prototype IDs (2) 40 Alien Tech Used (0) 0 Bonus (190) 190 TOTAL SCORE: 3604 Bonus ------- Follower Combat Kills 205 Friendly Fire -15 Cogmind --------- Core Integrity 0/550 Matter 279/300 Energy 41/100 System Corruption 0% Temperature Cool (9) Movement Core (150) Ox2 Location -8/Materials Parts ------- > --- POWER (1) -------- (None) > --- PROPULSION (4) --- (None) > --- UTILITY (4) ------ (None) > --- WEAPON (2) ------- Pulse Rifle Ion Cannon > --- INVENTORY (5) ---- Advanced Heat Sink Structural Scanner Drone Bay (0/2) Pulse Rifle Peak State ------------ > --- POWER ------------ Light Nuclear Core > --- PROPULSION ------- Aluminum Leg Carbon-fiber Leg Titanium Leg VSS Leg > --- UTILITY ---------- Small Storage Unit Sensor Array Hardened Light Armor Plating Drone Bay > --- WEAPON ----------- Improved Assault Rifle Improved Assault Rifle > --- INVENTORY -------- Improved Ion Engine Aluminum Leg Aluminum Leg Advanced Heat Sink Structural Scanner Pulse Rifle [Rating: 29] Favorites ----------- Power Improved Ion Engine Engine Improved Ion Engine Power Core Light Nuclear Core Propulsion Aluminum Leg Leg Aluminum Leg Flight Unit Cooled VTOL Module Utility Small Storage Unit Device Structural Scanner Storage Small Storage Unit Protection Light Armor Plating Weapon Beam Cannon Energy Gun Beam Rifle Energy Cannon Beam Cannon Ballistic Gun Improved Assault Rifle Ballistic Cannon Improved Light Cannon Build | -11 -10 -9 -9 -8 ------- Run | Yrd Mat Mat Sto Mat Slots Evolved 4 | . . 2 . 2 Power . | . . . . . Propulsion 2 | . . 2 . . Utility 2 | . . . . 2 Weapon . | . . . . . Parts Attached 61 | 6 13 16 11 15 Power 9 | 1 3 2 1 2 Engine 8 | 1 3 2 1 1 Core 1 | . . . . 1 Reactor . | . . . . . Propulsion 22 | 2 2 6 6 6 Treads . | . . . . . Leg 21 | 2 2 6 5 6 Wheel . | . . . . . Hover . | . . . . . Flight 1 | . . . 1 . Utility 17 | 1 3 6 2 5 Device 11 | . 2 4 1 4 Storage 1 | 1 . . . . Processor . | . . . . . Hackware . | . . . . . Protection 5 | . 1 2 1 1 Artifact . | . . . . . Weapon 13 | 2 5 2 2 2 Energy Gun 3 | 1 . 1 . 1 Energy Cannon 6 | . 5 . . 1 Ballistic Gun 3 | 1 . . 2 . Ballistic Cannon 1 | . . 1 . . Launcher . | . . . . . Special Weapon . | . . . . . Impact Weapon . | . . . . . Slashing Weapon . | . . . . . Piercing Weapon . | . . . . . Special Melee Weapon . | . . . . . Unidentified Prototypes 2 | . . . 2 . Parts Lost 23 | . . 3 5 15 Power 3 | . . . 1 2 Propulsion 8 | . . . 1 7 Utility 6 | . . 1 1 4 Weapon 6 | . . 2 2 2 Highest Loss Streak 14 | . . 1 5 14 To Critical Strikes . | . . . . . Average Slot Usage (%) 95 | . 94 98 96 88 Engine 10 | . 13 11 9 4 Leg 36 | . 27 44 43 32 Device 10 | . 5 9 8 21 Storage 11 | . 14 11 11 8 Protection 2 | . 4 . 1 2 Energy Gun 2 | . . 2 9 . Energy Cannon 11 | . 25 11 . . Ballistic Gun 3 | . . . 2 15 Ballistic Cannon 3 | . . 7 9 . Peak Build Rating 29 | 6 7 13 20 29 Average Rating 12 | 4 6 11 15 21 On Entrance 8 | . 6 7 13 14 Naked Turns 31 | . . . . 31 Heaviest Build 28 | 14 19 22 26 28 Greatest Support 54 | 20 20 43 43 54 Greatest Overweight (x) 2 | . 1 . . 2 Average Overweight (x) . | . . . . . Largest Inventory Capacity 8 | 8 8 8 8 8 Average Capacity 7 | 6 8 8 8 7 Most Carried 8 | 4 8 8 8 7 Average Carried 5 | 1 3 6 6 5 Final Capacity 8 | 8 8 8 8 5 Final Carried 7 | 1 6 7 7 4 Class Distribution -------------------- 86% | Mutant 13% | Scavenger-Mutant Dominant Class ---------------- Mutant | -10/Materials Mutant | -9/Materials Mutant | -9/Storage Mutant | -8/Materials Resources | -11 -10 -9 -9 -8 ----------- Run | Yrd Mat Mat Sto Mat Matter Collected 1087 | 144 220 316 230 177 Remotely . | . . . . . Salvage Created 1453 | . 276 479 331 367 Parts 91 | . 26 29 14 22 Haulers Intercepted . | . . . . . Recyclers Shooed 1 | . . 1 . . Parts Field Recycled . | . . . . . Retrieved Matter . | . . . . . Parts Self-Destructed . | . . . . . Prevented . | . . . . . Kills | -11 -10 -9 -9 -8 ------- Run | Yrd Mat Mat Sto Mat Combat Hostiles Destroyed 41 | . 11 13 8 9 Guns 15 | . . 1 6 8 Cannons 24 | . 11 11 1 1 Classes Destroyed 8 | . 4 2 . 2 Mechanic 1 | . 1 . . . Watcher 1 | . 1 . . . Swarmer 13 | . 8 2 . 3 Grunt 17 | . 3 5 5 4 Duelist 1 | . . 1 . . Sentry 8 | . . 5 3 . Specialist 1 | . . . . 1 Hunter 1 | . . . . 1 Best Kill Streak 5 | . 3 2 5 2 Combat Bots Only 5 | . 3 2 5 2 Max Kills in Single Turn 2 | . 1 1 2 1 Gunslinging 1 | . . . 1 . Exploded . | . . . . . Melee . | . . . . . Uniques/NPCs Destroyed . | . . . . . Combat | -11 -10 -9 -9 -8 -------- Run | Yrd Mat Mat Sto Mat Hostile Shots Fired 449 | . 68 66 105 210 Missed 135 | . 23 20 24 68 Damage Taken 3992 | . 391 563 963 2075 Core 869 | . 86 90 142 551 Absorbed by Shields . | . . . . . Core Remaining (%) 69 | 100 65 . 42 . Volleys Fired 136 | . 37 39 27 33 Largest 2 | . 2 2 2 2 Hottest 123 | . 120 120 95 123 Shots Fired 258 | . 75 73 53 57 Gun 108 | . 6 9 40 53 Cannon 150 | . 69 64 13 4 Launcher . | . . . . . Special . | . . . . . Kinetic 124 | . 3 33 39 49 Thermal 131 | . 69 40 14 8 Explosive . | . . . . . Electromagnetic 3 | . 3 . . . Robot Hit Streak 18 | . 5 18 11 15 Robot Miss Streak 5 | . 5 3 4 5 Penetration Max . | . . . . . Secondary Targets 1 | . . . 1 . Max Gunslinging Chain 1 | . . . 1 . Shots Hit Robots 156 | . 28 51 38 39 Core Hits 67 | . 13 18 14 22 Critical Kills 1 | . . . 1 . Critical Parts Destroyed . | . . . . . Critical Strikes 8 | . . 2 5 1 Burn 5 | . . 1 3 1 Destroy 1 | . . . 1 . Blast 2 | . . 1 1 . Melee Attacks . | . . . . . Impact . | . . . . . Slashing . | . . . . . Piercing . | . . . . . Sneak Attacks . | . . . . . Combat Hostiles . | . . . . . Follow-up Attacks . | . . . . . Damage Inflicted 2779 | . 539 952 676 612 Guns 1117 | . . 98 493 526 Cannons 1630 | . 524 854 183 69 Explosions . | . . . . . Melee . | . . . . . Ramming 32 | . 15 . . 17 Kinetic 1439 | . . 432 515 492 Thermal 1308 | . 524 520 161 103 Explosive . | . . . . . Electromagnetic . | . . . . . Impact . | . . . . . Slashing . | . . . . . Piercing . | . . . . . Highest Corruption 2 | . 2 . . . Average Corruption 2 | . 2 . . . Corruption Purged . | . . . . . Corruption Blocked . | . . . . . Effects 8 | . 8 . . . Message Errors 3 | . 3 . . . Matter Fused 1 | . 1 . . . Heat Flow Errors 1 | . 1 . . . Data Loss (minor) 1 | . 1 . . . Misfires 1 | . 1 . . . Alerts 1 | . 1 . . . Overload Shots . | . . . . . Overflow Damage 3 | . . . . 3 Projectiles 3 | . . . . 3 Explosions . | . . . . . Melee . | . . . . . Knockbacks 8 | . . 4 4 . Impact . | . . . . . Kinetic 6 | . . 4 2 . Secondary 2 | . . . 2 . Self-Inflicted Damage 4 | . . . . 4 Shots . | . . . . . Rammed 3 | . . . . 3 Targets Rammed 10 | . 2 1 . 7 Kicked 7 | . 2 1 . 4 Crushed . | . . . . . Highest Temperature 396 | . 396 203 346 117 Average Temperature 113 | . 142 62 152 34 Received Heat Transfer 1458 | . 66 198 528 666 Effects 4 | . 2 . 2 . Energy Bleed 1 | . 1 . . . Interference 3 | . 1 . 2 . Siege Activations . | . . . . . Robots Corrupted . | . . . . . Combat Hostiles . | . . . . . Parts Fried . | . . . . . Impact Corruptions . | . . . . . Robots Melted 2 | . . 1 1 . Combat Hostiles 2 | . . 1 1 . Parts Melted 5 | . 1 4 . . Heat Transferred 3219 | . 1110 1221 629 259 Parts Sabotaged . | . . . . . Parts Stolen . | . . . . . Parts Stripped . | . . . . . Power Chain Reactions . | . . . . . Alert | -11 -10 -9 -9 -8 ------- Run | Yrd Mat Mat Sto Mat Peak Influence 353 | . 286 349 353 299 Initial 100 | . . 70 100 69 Average 152 | . 145 169 142 156 Maximum Alert Level 1 | . 1 1 1 1 Low Security (%) 68 | 100 67 60 92 60 Level 1 31 | . 32 39 7 39 Level 2 . | . . . . . Level 3 . | . . . . . Level 4 . | . . . . . Level 5 . | . . . . . High Security . | . . . . . Max Security . | . . . . . Squads Dispatched 13 | . 2 3 2 6 Investigation 3 | . . 2 . 1 Extermination . | . . . . . Reinforcement 8 | . 2 1 . 5 Assault 2 | . . . 2 . Garrison . | . . . . . Intercept . | . . . . . Searches Triggered . | . . . . . Construction Impeded . | . . . . . Haulers Reinforced . | . . . . . Active Scanning Responses . | . . . . . Cargo Convoy Interrupts . | . . . . . Stealth | -11 -10 -9 -9 -8 --------- Run | Yrd Mat Mat Sto Mat Distress Signals 10 | . 2 2 5 1 Communications Jammed . | . . . . . Distress Signals . | . . . . . Times Spotted 111 | . 24 26 17 44 Peak Tracking Total 17 | . 5 4 8 17 Tactical Retreats 13 | . 3 3 1 6 Traps | -11 -10 -9 -9 -8 ------- Run | Yrd Mat Mat Sto Mat Traps Triggered 5 | . 5 . . . Indirectly . | . . . . . Trap Hack Attempts . | . . . . . Triggered . | . . . . . Disarmed . | . . . . . Reprogrammed . | . . . . . Reused . | . . . . . Traps Extracted . | . . . . . Installed . | . . . . . Triggered . | . . . . . Machines | -11 -10 -9 -9 -8 ---------- Run | Yrd Mat Mat Sto Mat Machines Disabled 3 | . 1 . . 2 Max in Single Turn 1 | . 1 . . 1 Machines Repaired . | . . . . . Machines Dismantled . | . . . . . Machines Sabotaged . | . . . . . Overloaded Fab Kills . | . . . . . Hacking | -11 -10 -9 -9 -8 --------- Run | Yrd Mat Mat Sto Mat Machines Accessed 15 | . 3 4 6 2 Terminals 12 | . 3 2 5 2 Fabricators . | . . . . . Repair Stations . | . . . . . Recycling Units 1 | . . . 1 . Scanalyzers 2 | . . 2 . . Garrison Access . | . . . . . Total Hacks 33 | . 4 12 15 2 Successful 24 | . 4 10 9 1 Failed 9 | . . 2 6 1 Catastrophic 1 | . . . . 1 Database Lockouts . | . . . . . Manual . | . . . . . Terminals 23 | . 4 6 11 2 Fabricators . | . . . . . Repair Stations . | . . . . . Recycling Units 4 | . . . 4 . Scanalyzers 6 | . . 6 . . Garrison Access . | . . . . . Terminal Hacks 15 | . 4 4 6 1 Record 5 | . . 4 . 1 Open Door 4 | . . . 4 . Emergency Access Points 1 | . . . 1 . Alert Level 2 | . 2 . . . Locate Traps 1 | . 1 . . . Surveillance Status 1 | . 1 . . . Zone Layout 1 | . . . 1 . Fabricator Hacks . | . . . . . Repair Station Hacks . | . . . . . Recycling Unit Hacks 3 | . . . 3 . Process 1 | . . . 1 . Report Inventory 1 | . . . 1 . Retrieve Components 1 | . . . 1 . Scanalyzer 6 | . . 6 . . Insert Component 3 | . . 3 . . Analyze 3 | . . 3 . . Garrison Access Hacks . | . . . . . Unauthorized Hacks . | . . . . . Terminals . | . . . . . Fabricators . | . . . . . Repair Stations . | . . . . . Recycling Units . | . . . . . Scanalyzers . | . . . . . Garrison Access . | . . . . . Data Cores Recovered . | . . . . . Used . | . . . . . Hacking Detections 11 | . 2 4 4 1 Full Trace Events 3 | . . 2 . 1 Feedback Events . | . . . . . Feedback Blocked . | . . . . . Robot Schematics Acquired . | . . . . . Robots Built . | . . . . . Authchips . | . . . . . Time . | . . . . . Total Robot Build Rating . | . . . . . Part Schematics Acquired 2 | . . 2 . . Parts Built . | . . . . . Authchips . | . . . . . Time . | . . . . . Total Part Build Rating . | . . . . . Parts Repaired . | . . . . . Time . | . . . . . Parts Recycled . | . . . . . Recycled Matter 2 | . . . 2 . Retrieved Matter . | . . . . . Retrieved Components . | . . . . . Parts Scanalyzed 2 | . . 2 . . Part Schematics Acquired 2 | . . 2 . . Parts Damaged . | . . . . . Bothacking | -11 -10 -9 -9 -8 ------------ Run | Yrd Mat Mat Sto Mat Used RIF Installer . | . . . . . Robots Hacked . | . . . . . Non-combat . | . . . . . Combat . | . . . . . Robot Hacks Applied . | . . . . . Relay Couplers Released . | . . . . . Fabnet Peak Effective % . | . . . . . Robots Rewired . | . . . . . Allies Hacked . | . . . . . Hacks Repelled . | . . . . . Allies | -11 -10 -9 -9 -8 -------- Run | Yrd Mat Mat Sto Mat Total Allies 2 | . . . 2 . Largest Group 2 | . . . 2 . Highest-Rated Group 62 | . . . 62 . Highest-Rated Ally 31 | . . . 31 . Total Orders . | . . . . . Ally Attacks 21 | . . . 21 . Total Damage 305 | . . . 305 . Kills 7 | . . . 7 . Allies Corrupted . | . . . . . Allies Melted . | . . . . . Intel | -11 -10 -9 -9 -8 ------- Run | Yrd Mat Mat Sto Mat Robot Analysis Total . | . . . . . Derelict Logs Recovered . | . . . . . Drone Launches 18 | . . . 16 2 Drone Recoveries 2 | . . . 2 . Exploration | -11 -10 -9 -9 -8 ------------- Run | Yrd Mat Mat Sto Mat Turns Passed 3790 | 81 1061 1220 624 804 Spaces Moved 1905 | 59 663 417 326 440 Core 85 | 6 5 . . 74 Treads . | . . . . . Legs 1820 | 53 658 417 326 366 Wheels . | . . . . . Hover . | . . . . . Flight . | . . . . . Fastest Speed 50 | 50 100 120 120 50 Average Speed 117 | 112 119 120 120 108 Slowest Speed 190 | 120 190 120 120 150 Overloaded Moves . | . . . . . Propulsion Burnouts . | . . . . . Robots Hopped . | . . . . . Cave-ins Triggered . | . . . . . Exploration Rate (%) 42 | 4 74 33 50 52 Regions Visited 4 Branch Regions 1 Pre-discovered Areas . | . . . . . Known Exits Taken . | . . . . . Unknown Exits Taken 4 | 1 1 1 1 . Scrap Searched . | . . . . . Spaces Dug . | . . . . . Terrain Destroyed 2 | . . 1 1 . Melee . | . . . . . Projectile 2 | . . 1 1 . AOE . | . . . . . Terrain Rammed . | . . . . . Walls Destroyed . | . . . . . Machines Disabled . | . . . . . Actions | -11 -10 -9 -9 -8 --------- Run | Yrd Mat Mat Sto Mat Total 3207 | 72 857 1061 507 710 Wait 1011 | . 122 578 114 197 Move 1901 | 58 662 416 325 440 Hop . | . . . . . Pick Up 51 | 5 15 7 13 11 Fast Attach 9 | 5 2 . . 2 Attach 31 | 1 10 8 5 7 Detach 6 | . 3 3 . . Swap 21 | . 1 8 6 6 Drop 23 | 3 3 1 9 7 Fire 136 | . 37 39 27 33 Melee . | . . . . . Ram 3 | . . . . 3 Kick 7 | . 2 1 . 4 Crush . | . . . . . Escape Stasis . | . . . . . Rewire 1 | . . . 1 . Trap . | . . . . . Miscellaneous 7 | . . . 7 . Route ------- -11/Scrapyard -10/Materials (discovered 2 exits: *Mat x2) -9/Materials (discovered 2 exits: *Sto x2) -9/Storage -8/Materials History --------- Turn | Location | Event 6 | -11/Scrapyard | Discovered new exit (range 15) 82 | -11/Scrapyard | Entered Materials 321 | -10/Materials | Build established: Mutant 703 | -10/Materials | Discovered new exit (range 8) 1003 | -10/Materials | Discovered new exit (range 12) 1143 | -10/Materials | Entered another Materials area 1143 | -9/Materials | Evolved 2 slots: Propulsion x2 2045 | -9/Materials | Discovered new exit (range 4) 2174 | -9/Materials | Discovered new exit (range 3) 2363 | -9/Materials | Entered Storage 2410 | -9/Storage | Build established: Scavenger-Mutant 2693 | -9/Storage | Met a pair of Derelict thieves 2848 | -9/Storage | Build established: Mutant 2860 | -9/Storage | Lost 10 allies 2884 | -9/Storage | Core integrity fell below 50% 2899 | -9/Storage | Discovered new exit (range 16) 2965 | -9/Storage | Lost 5 parts (1p1n1u2w) 2987 | -9/Storage | Entered Materials 2987 | -8/Materials | Evolved 2 slots: Utility x2 3719 | -8/Materials | Core integrity fell below 50% 3748 | -8/Materials | Core integrity fell below 20% 3764 | -8/Materials | Lost 14 parts (2p6n4u2w) 3791 | -8/Materials | Destroyed by G-47 Trooper with Particle Gun Last Messages --------------- 03716_ Slammed into H-55 Commando. 03721_ Penetrated by Slug. 03722_ Sml. Storage Unit destroyed. 03726_ ALERT: Hostiles spotted, dispatching reinforcements to Terminal M009. 03730_ Kicked Y-45 Defender. 03732_ Aluminum Leg destroyed. 03732_ Slammed into Y-45 Defender. 03733_ Sensor Array destroyed. 03745_ C-30 ARC bursts open, deploying its payload. 03745_ G-50 Soldier unfolds itself. 03745_ G-47 Trooper unfolds itself. 03764_ Acquired Ion Cannon. 03764_ ALERT: Hostiles spotted, dispatching reinforcements to Terminal M011. 03768_ Acquired Pulse Rifle. 03772_ Destroyed Flight Unit. 03772_ S-10 Pest destroyed. 03778_ G-47 Trooper suffers critical hit (Burn). 03779_ Critical hit (Burn: +37). Map ----- +----------------------------------------------------+ | ??????????????????????????????????????? | | ??????????????????????????????????????? | | ??????????????????????????????????????? | | ??????????????????????????????????????? | | ??????????????????????????????????????? | | ??????????????????????????????????????? | | ??????????????????????????????????????? | | ??????????????????????????????????????? | | ??????????????????????????????????????? | | ??????????????????????????????????????? | | ??????????????????#???????????????????? | | ?????????????????? ###??##????????????? | | ??????????????????? #????????????? | | ??????????????????? """ #?????#+#####+ | | ???????????????????? R" #?????? | | ???????????????????? """ +??????? | | ????????????????????? #???????? | | ????????????????????? #?????????# | | ?????????????????????? % ??????????#" | | ?????????????????????? ?????######%" | | ??????????????????????#+#?????+ " | | ??????????????????????# #?????# | | ??????????????????????# #?????# " " | | ?????????????########## ###????# "G" | | ?????????????# # #????# """ [ | | ?????????????#@"""g # ###### | | ?????????????# """ [g% T | | ?????????????#g""" %#h ### ####/ | | ?????????????#gg Y # #?# # | | ?????????????# !#######?# + | | ?????????????########???#####/## # | | ????????????????????????# # # "" | | ????????????????????????# + +? "" | | ????????????????????????# # #? "" | | ????????????????????????# # #??## | | ????????????????????????# # ??? | | ????????????????????????# ######?? | | ????????????????????????########??????? | | ??????????????????????????????????????? | | ??????????????????????????????????????? | | | | | | | | | | | | | | | | | | | | | +----------------------------------------------------+ Best States ------------- Heat Dissipation 31 Energy Generation 14 Energy Capacity 265 Matter Stores 300 Matter Capacity 300 Sight Range 16 Robot Scan Range 14 Terrain Scan Range 16 Terrain Scan Density 10 ECM Strength 1 Armor Coverage 225 Evasion (%) 55 Item Schematics ----------------- Aluminum Leg | -9/Materials | Scanalyzed Ion Engine | -9/Materials | Scanalyzed Robot Schematics ------------------ None Fabricated ------------ Nothing Alien Tech Used ----------------- None Achievements -------------- Release The Drones! Challenges ------------ None Game ------ Seed IntegrityMeleeTrident Manual? 0 Play Time 00:49:49 Cumulative 7.0 hours Start 2024.12.09 @ 19:46:08 End 2024.12.09 @ 20:38:23 Sessions 1 Manual Loads 0 Difficulty Rogue Special Mode None Game No. 9 Rogue 3 Adventurer 6 Explorer 0 Win Type - Total 0 Types 0/0/0/0/0/0/0/0/0 Lore% 8 Gallery% 14 Achievement% 16 Wizard Run 0 Options --------- Layout 1 ASCII 0 Keyboard 0 Movement Numpad Keybinds 0 Fullscreen 1 Font 32/SmallcapsGlow Map View 77x35 Zoom Use 0% Tactical HUD 1 Map Filters NONE Filters NONE Steam 1 RUN: 51774efa-4059-4ea0-bdde-e679ca9d578c